fUST/lending_fUST_20241121
["ID","MTS","AMOUNT","RATE_DAILY","PERIOD"]
[342846770,1732179052844,-253.334439,0.00026849,7]
[342846771,1732179052853,-151.0,0.00026849,7]
[342846772,1732179052862,-1176.96,0.00026849,2]
[342846773,1732179052871,-287.986,0.00026855,2]
[342846774,1732179052881,-300.0,0.000269,2]
[342846775,1732179052890,-205.853928,0.00026921,2]
[342846776,1732179052899,-300.0,0.00027,120]
[342846777,1732179052909,-500.0,0.00027123,2]
[342846778,1732179052918,-556.24,0.00027123,2]
[342846779,1732179052927,-720.57,0.00027123,2]
[342846780,1732179052937,-556.75,0.00027123,2]
[342846781,1732179052947,-1236.27,0.00027123,2]
[342846782,1732179052956,-539.19,0.00027123,2]
[342846783,1732179052965,-500.0,0.00027123,2]
[342846784,1732179052975,-500.0,0.00027123,2]
[342846785,1732179052985,-500.0,0.00027123,2]
[342846786,1732179053055,-642.54,0.00027123,2]
[342846787,1732179053064,-519.5,0.00027123,2]
[342846788,1732179053074,-1808.4,0.00027123,2]
[342846789,1732179053091,-609.19,0.00027123,2]
[342846790,1732179053101,-2292.59,0.00027123,2]
[342846791,1732179053111,-649.93,0.00027123,2]
[342846792,1732179053120,-9446.81,0.00027123,2]
[342846793,1732179053130,-4609.53,0.00027123,2]
[342846794,1732179053139,-924.81,0.00027123,2]
[342846795,1732179053148,-1182.26,0.00027123,2]
[342846796,1732179053157,-2085.1,0.00027123,2]
[342846797,1732179053166,-500.0,0.00027123,2]
[342846798,1732179053175,-500.0,0.00027123,2]
[342846799,1732179053184,-1176.96,0.00027123,2]
[342846800,1732179053193,-314.33859323,0.00027185,2]
[342846801,1732179053203,-151.0,0.000272,7]
[342846802,1732179053212,-529.6,0.000272,31]
[342846803,1732179053222,-529.6,0.000272,31]
[342846804,1732179053232,-529.6,0.000272,31]
[342846805,1732179053241,-529.6,0.000272,31]
[342846806,1732179053250,-529.6,0.000272,31]
[342846807,1732179053260,-529.6,0.000272,31]
[342846808,1732179053271,-529.6,0.000272,31]
[342846809,1732179053280,-529.6,0.000272,31]
[342846810,1732179053290,-529.6,0.000272,31]
[342846811,1732179053299,-529.6,0.000272,31]
[342846812,1732179053308,-529.6,0.000272,31]
[342846813,1732179053318,-529.6,0.000272,31]
[342846814,1732179053327,-529.6,0.000272,31]
[342846815,1732179053336,-529.6,0.000272,31]
[342846816,1732179053346,-529.6,0.000272,31]
[342846817,1732179053355,-529.6,0.000272,31]
[342846818,1732179053364,-529.6,0.000272,31]
[342846819,1732179053374,-529.6,0.000272,31]
[342846820,1732179053383,-529.6,0.000272,31]
[342846821,1732179053392,-529.6,0.000272,31]
[342846822,1732179053402,-529.6,0.000272,31]
[342846823,1732179053411,-529.6,0.000272,31]
[342846824,1732179053420,-529.6,0.000272,31]
[342846825,1732179053429,-529.6,0.000272,31]
[342846826,1732179053438,-151.0,0.00027372,6]
[342846827,1732179053448,-2500.0,0.00027386,3]
[342846828,1732179053456,-2500.0,0.00027395,3]
[342846829,1732179053465,-1101.2769163,0.00027396,3]
[342846830,1732179053476,-600.0,0.00027397,2]
[342846831,1732179053485,-600.0,0.00027397,2]
[342846832,1732179053494,-600.0,0.00027397,2]
[342846833,1732179053503,-600.0,0.00027397,2]
[342846834,1732179053512,-600.0,0.00027397,2]
[342846835,1732179053520,-652.94157916,0.00027397,2]
[342846836,1732179053530,-151.0,0.00027397,7]
[342846837,1732179053539,-500.0,0.00027397,8]
[342846838,1732179053548,-500.0,0.00027397,2]
[342846839,1732179053556,-295.689199,0.00027397,7]
[342846840,1732179053565,-189.331968,0.00027397,7]
[342846841,1732179053574,-189.331968,0.00027397,7]
[342846842,1732179053583,-151.0,0.00027397,7]
[342846843,1732179053591,-151.0,0.00027397,7]
[342846844,1732179053601,-151.0,0.00027397,7]
[342846845,1732179053615,-556.24,0.00027397,2]
[342846846,1732179053633,-2137.812299,0.00027397,7]
[342846847,1732179053647,-151.0,0.00027397,7]
[342846848,1732179053667,-151.0,0.00027397,7]
[342846849,1732179053688,-720.57,0.00027397,2]
[342846850,1732179053704,-556.75,0.00027397,2]
[342846851,1732179053722,-151.0,0.00027397,7]
[342846852,1732179053738,-153.799413,0.00027397,7]
[342846853,1732179053754,-153.799413,0.00027397,7]
[342846854,1732179053770,-454.034636,0.00027397,7]
[342846855,1732179053782,-454.034636,0.00027397,7]
[342846856,1732179053796,-151.0,0.00027397,7]
[342846857,1732179053812,-1236.27,0.00027397,2]
[342846858,1732179053829,-192.3987,0.00027397,7]
[342846859,1732179053845,-192.3987,0.00027397,7]
[342846860,1732179053862,-539.19,0.00027397,2]
[342846861,1732179053872,-501.76867324,0.00027397,2]
[342846862,1732179053885,-471.883528,0.00027397,7]
[342846863,1732179053903,-500.0,0.00027397,2]
[342846864,1732179053916,-471.883528,0.00027397,7]
[342846865,1732179053929,-500.0,0.00027397,2]
[342846866,1732179053943,-500.0,0.00027397,2]
[342846867,1732179053955,-642.54,0.00027397,2]
[342846868,1732179053968,-519.5,0.00027397,2]
[342846869,1732179053983,-1808.4,0.00027397,2]
[342846870,1732179053995,-609.19,0.00027397,2]
[342846871,1732179054008,-2292.59,0.00027397,2]
[342846872,1732179054021,-649.93,0.00027397,2]
[342846873,1732179054034,-9446.81,0.00027397,2]
[342846874,1732179054047,-4609.53,0.00027397,2]
[342846875,1732179054060,-924.81,0.00027397,2]
[342846876,1732179054073,-1182.26,0.00027397,2]
[342846877,1732179054086,-2085.1,0.00027397,2]
[342846878,1732179054098,-500.0,0.00027397,2]
[342846879,1732179054110,-500.0,0.00027397,2]
[342846880,1732179054122,-500.0,0.00027397,2]
[342846881,1732179054134,-1176.96,0.00027397,2]
[342846882,1732179054147,-10000.0,0.00027397,90]
[342846883,1732179054159,-164.63133597,0.00027397,2]
[342846884,1732179054171,-151.0,0.00027397,7]
[342846885,1732179054183,-151.0,0.00027397,7]
[342846886,1732179054196,-151.0,0.00027397,7]
[342846887,1732179054207,-151.0,0.00027397,7]
[342846888,1732179054219,-151.0,0.00027397,7]
[342846889,1732179054232,-3014.03580475,0.00027499,2]
[342846890,1732179054244,-5000.0,0.00027561,30]
[342846891,1732179054258,-1114.73,0.00027669,2]
[342846892,1732179054272,-151.0,0.00027669,7]
[342846893,1732179054286,-151.0,0.00027669,7]
[342846894,1732179054298,-151.0,0.00027669,7]
[342846895,1732179054311,-151.0,0.00027669,7]
[342846896,1732179054324,-1283.908578,0.0002767,7]
[342846897,1732179054336,-1283.908578,0.0002767,7]
[342846898,1732179054348,-1423.435059,0.0002767,7]
[342846899,1732179054360,-1943.946544,0.0002767,7]
[342846900,1732179054373,-1943.946544,0.0002767,7]
[342846901,1732179054386,-1423.435059,0.0002767,7]
[342846902,1732179054469,-483.243882,0.0002767,7]
[342846903,1732179054503,-483.243882,0.0002767,7]
[342846904,1732179054514,-151.0,0.0002767,7]
[342846905,1732179054523,-323.639727,0.0002767,7]
[342846906,1732179054532,-323.639727,0.0002767,7]
[342846907,1732179054541,-151.0,0.0002767,7]
[342846908,1732179054551,-151.0,0.0002767,7]
[342846909,1732179054560,-642.696877,0.0002767,7]
[342846910,1732179054569,-151.0,0.0002767,7]
[342846911,1732179054578,-480.607155,0.0002767,7]
[342846912,1732179054587,-642.696877,0.0002767,7]
[342846913,1732179054596,-151.0,0.0002767,7]
[342846914,1732179054605,-480.607155,0.0002767,7]
[342846915,1732179054614,-253.334439,0.0002767,7]
[342846916,1732179054623,-253.334439,0.0002767,7]
[342846917,1732179054633,-151.0,0.0002767,7]
[342846918,1732179054642,-101254.55674192,0.00027671,2]
[342846919,1732179054651,-4230.82055126,0.00027671,2]
[342846920,1732179054660,-504.13126978,0.00027671,2]
[342846921,1732179054673,-151.0,0.00027671,7]
[342846922,1732179054682,-500.0,0.00027671,2]
[342846923,1732179054692,-151.0,0.00027671,7]
[342846924,1732179054701,-189.331968,0.00027671,7]
[342846925,1732179054711,-189.331968,0.00027671,7]
[342846926,1732179054720,-151.0,0.00027671,7]
[342846927,1732179054734,-151.0,0.00027671,7]
[342846928,1732179054743,-151.0,0.00027671,7]
[342846929,1732179054753,-556.24,0.00027671,2]
[342846930,1732179054763,-2137.812299,0.00027671,7]
[342846931,1732179054774,-151.0,0.00027671,7]
[342846932,1732179054783,-151.0,0.00027671,7]
[342846933,1732179054793,-720.57,0.00027671,2]
[342846934,1732179054802,-556.75,0.00027671,2]
[342846935,1732179054811,-151.0,0.00027671,7]
[342846936,1732179054821,-153.799413,0.00027671,7]
[342846937,1732179054830,-153.799413,0.00027671,7]
[342846938,1732179054839,-454.034636,0.00027671,7]
[342846939,1732179054848,-454.034636,0.00027671,7]
[342846940,1732179054858,-151.0,0.00027671,7]
[342846941,1732179054867,-1236.27,0.00027671,2]
[342846942,1732179054877,-192.3987,0.00027671,7]
[342846943,1732179054887,-192.3987,0.00027671,7]
[342846944,1732179054896,-539.19,0.00027671,2]
[342846945,1732179054906,-471.883528,0.00027671,7]
[342846946,1732179054915,-587.8,0.00027671,2]
[342846947,1732179054924,-471.883528,0.00027671,7]
[342846948,1732179054934,-500.0,0.00027671,2]
[342846949,1732179054944,-193.75978574,0.00027671,2]
[342846950,1732179054953,-642.54,0.00027671,2]
[342846951,1732179054962,-519.5,0.00027671,2]
[342846952,1732179054975,-1808.4,0.00027671,2]
[342846953,1732179054984,-609.19,0.00027671,2]
[342846954,1732179054993,-2292.59,0.00027671,2]
[342846955,1732179055002,-649.93,0.00027671,2]
[342846956,1732179055011,-151.0,0.00027671,7]
[342846957,1732179055020,-487.377585,0.00027671,7]
[342846958,1732179055030,-487.377585,0.00027671,7]
[342846959,1732179055039,-9446.81,0.00027671,2]
[342846960,1732179055048,-4609.53,0.00027671,2]
[342846961,1732179055057,-160.733208,0.00027671,7]
[342846962,1732179055066,-924.81,0.00027671,2]
[342846963,1732179055075,-1182.26,0.00027671,2]
[342846964,1732179055085,-2085.1,0.00027671,2]
[342846965,1732179055094,-435.12773314,0.00027671,2]
[342846966,1732179055103,-500.0,0.00027671,2]
[342846967,1732179055112,-1176.96,0.00027671,2]
[342846968,1732179055121,-500.0,0.00027673,120]
[342846969,1732179055130,-500.0,0.00027673,120]
[342846970,1732179055139,-500.0,0.00027673,120]
[342846971,1732179055148,-500.0,0.00027673,120]
[342846972,1732179055158,-500.0,0.00027673,120]
[342846973,1732179055167,-500.0,0.00027673,120]
[342846974,1732179055176,-500.0,0.00027673,120]
[342846975,1732179055185,-500.0,0.00027673,120]
[342846976,1732179055195,-500.0,0.00027673,120]
[342846977,1732179055204,-500.0,0.00027673,120]
[342846978,1732179055213,-500.0,0.00027673,120]
[342846979,1732179055223,-500.0,0.00027673,120]
[342846980,1732179055232,-500.0,0.00027673,120]
[342846981,1732179055241,-500.0,0.00027673,120]
[342846982,1732179055251,-500.0,0.00027673,120]
[342846983,1732179055261,-500.0,0.00027673,120]
[342846984,1732179055271,-500.0,0.00027673,120]
[342846985,1732179055280,-500.0,0.00027673,120]
[342846986,1732179055288,-500.0,0.00027673,120]
[342846987,1732179055298,-500.0,0.00027673,120]
[342846988,1732179055307,-500.0,0.00027673,120]
[342846989,1732179055316,-500.0,0.00027673,120]
[342846990,1732179055325,-500.0,0.00027673,120]
[342846991,1732179055334,-500.0,0.00027673,120]
[342846992,1732179055344,-500.0,0.00027673,120]
[342846993,1732179055353,-500.0,0.00027673,120]
[342846994,1732179055362,-500.0,0.00027673,120]
[342846995,1732179055371,-419.99,0.00027673,120]
[342846996,1732179055380,-392.29,0.00027673,120]
[342846997,1732179055389,-253.334439,0.00027673,7]
[342846998,1732179055399,-253.334439,0.00027673,7]
[342846999,1732179055409,-151.0,0.00027673,7]
[342847000,1732179055418,-529.6,0.000277,31]
[342847001,1732179055428,-529.6,0.000277,31]
[342847002,1732179055438,-529.6,0.000277,31]
[342847003,1732179055447,-529.6,0.000277,31]
[342847004,1732179055457,-529.6,0.000277,31]
[342847005,1732179055467,-529.6,0.000277,31]
[342847006,1732179055477,-529.6,0.000277,31]
[342847007,1732179055487,-529.6,0.000277,31]
[342847008,1732179055496,-529.6,0.000277,31]
[342847009,1732179055505,-529.6,0.000277,31]
[342847010,1732179055514,-529.6,0.000277,31]
[342847011,1732179055524,-529.6,0.000277,31]
[342847012,1732179055533,-529.6,0.000277,31]
[342847013,1732179055543,-529.6,0.000277,31]
[342847014,1732179055552,-529.6,0.000277,31]
[342847015,1732179055562,-529.6,0.000277,31]
[342847016,1732179055572,-529.6,0.000277,31]
[342847017,1732179055581,-529.6,0.000277,31]
[342847018,1732179055591,-529.6,0.000277,31]
[342847019,1732179055600,-529.6,0.000277,31]
[342847020,1732179055609,-529.6,0.000277,31]
[342847021,1732179055619,-529.6,0.000277,31]
[342847022,1732179055628,-529.6,0.000277,31]
[342847023,1732179055638,-529.6,0.000277,31]
[342847024,1732179055647,-500.0,0.00027708,7]
[342847025,1732179055656,-2000.0,0.0002782,5]
[342847026,1732179055667,-5000.0,0.0002784,30]
[342847027,1732179055678,-300.0,0.000279,2]
[342847028,1732179055688,-302.21,0.00027945,2]
[342847029,1732179055697,-556.24,0.00027945,2]
[342847030,1732179055710,-720.57,0.00027945,2]
[342847031,1732179055719,-556.75,0.00027945,2]
[342847032,1732179055734,-1236.27,0.00027945,2]
[342847033,1732179055745,-539.19,0.00027945,2]
[342847034,1732179055754,-500.0,0.00027945,2]
[342847035,1732179055763,-642.54,0.00027945,2]
[342847036,1732179055773,-519.5,0.00027945,2]
[342847037,1732179055782,-1808.4,0.00027945,2]
[342847038,1732179055791,-609.19,0.00027945,2]
[342847039,1732179055800,-2292.59,0.00027945,2]
[342847040,1732179055810,-649.93,0.00027945,2]
[342847041,1732179055819,-9446.81,0.00027945,2]
[342847042,1732179055828,-4609.53,0.00027945,2]
[342847043,1732179055837,-924.81,0.00027945,2]
[342847044,1732179055847,-1182.26,0.00027945,2]
[342847045,1732179055856,-2085.1,0.00027945,2]
[342847046,1732179055866,-622.9,0.00027945,2]
[342847047,1732179055875,-1176.96,0.00027945,2]
[342847048,1732179055885,-151.0,0.00027986,7]
[342847049,1732179055895,-1168.24626798,0.0002799,7]
[342847050,1732179055904,-1286.0,0.00028,2]
[342847051,1732179055914,-1000.52,0.00028,7]
[342847052,1732179055923,-222424.53362864,0.00028,30]
[342847053,1732179055933,-603.53360701,0.00028,2]
[342847054,1732179055942,-4200.0,0.00028,120]
[342847055,1732179055951,-85302.75399108,0.00028,30]
[342847056,1732179055960,-2204.15303753,0.00028,10]
[342847057,1732179055969,-151.0,0.00028,7]
[342847058,1732179055981,-151.0,0.00028,7]
[342847059,1732179055990,-151.0,0.00028,7]
[342847060,1732179055999,-151.0,0.00028,7]
[342847061,1732179056008,-151.0,0.00028,7]
[342847062,1732179056019,-156.358641,0.00028,7]
[342847063,1732179056029,-189.331968,0.00028,7]
[342847064,1732179056038,-189.331968,0.00028,7]
[342847065,1732179056047,-151.0,0.00028,7]
[342847066,1732179056056,-175.349084,0.00028,7]
[342847067,1732179056135,-151.0,0.00028,7]
[342847068,1732179056145,-2137.812299,0.00028,7]
[342847069,1732179056155,-2137.812299,0.00028,7]
[342847070,1732179056164,-151.0,0.00028,7]
[342847071,1732179056174,-151.0,0.00028,7]
[342847072,1732179056183,-151.0,0.00028,7]
[342847073,1732179056192,-153.799413,0.00028,7]
[342847074,1732179056202,-153.799413,0.00028,7]
[342847075,1732179056212,-454.034636,0.00028,7]
[342847076,1732179056221,-454.034636,0.00028,7]
[342847077,1732179056234,-151.0,0.00028,7]
[342847078,1732179056243,-192.3987,0.00028,7]
[342847079,1732179056254,-192.3987,0.00028,7]
[342847080,1732179056264,-471.883528,0.00028,7]
[342847081,1732179056274,-471.883528,0.00028,7]
[342847082,1732179056284,-1283.908578,0.00028,7]
[342847083,1732179056293,-1283.908578,0.00028,7]
[342847084,1732179056303,-1423.435059,0.00028,7]
[342847085,1732179056313,-1943.946544,0.00028,7]
[342847086,1732179056322,-1943.946544,0.00028,7]
[342847087,1732179056332,-1423.435059,0.00028,7]
[342847088,1732179056342,-483.243882,0.00028,7]
[342847089,1732179056352,-483.243882,0.00028,7]
[342847090,1732179056362,-151.0,0.00028,7]
[342847091,1732179056372,-323.639727,0.00028,7]
[342847092,1732179056383,-323.639727,0.00028,7]
[342847093,1732179056393,-151.0,0.00028,7]
[342847094,1732179056406,-151.0,0.00028,7]
[342847095,1732179056418,-151.0,0.00028,7]
[342847096,1732179056428,-487.377585,0.00028,7]
[342847097,1732179056437,-642.696877,0.00028,7]
[342847098,1732179056447,-151.0,0.00028,7]
[342847099,1732179056457,-487.377585,0.00028,7]
[342847100,1732179056467,-480.607155,0.00028,7]
[342847101,1732179056479,-642.696877,0.00028,7]
[342847102,1732179056489,-151.0,0.00028,7]
[342847103,1732179056499,-480.607155,0.00028,7]
[342847104,1732179056509,-253.334439,0.00028,7]
[342847105,1732179056518,-253.334439,0.00028,7]
[342847106,1732179056528,-151.0,0.00028,7]
[342847107,1732179056537,-5000.0,0.00028121,30]
[342847108,1732179056547,-6480.97,0.000282,30]
[342847109,1732179056557,-556.31726856,0.00028219,2]
[342847110,1732179056566,-720.76275429,0.00028219,2]
[342847111,1732179056575,-556.85,0.00028219,2]
[342847112,1732179056585,-151.0,0.00028219,7]
[342847113,1732179056594,-153.799413,0.00028219,7]
[342847114,1732179056603,-153.799413,0.00028219,7]
[342847115,1732179056612,-454.034636,0.00028219,7]
[342847116,1732179056621,-454.034636,0.00028219,7]
[342847117,1732179056630,-151.0,0.00028219,7]
[342847118,1732179056640,-1236.4264583,0.00028219,2]
[342847119,1732179056649,-539.24277556,0.00028219,2]
[342847120,1732179056658,-278.78563826,0.00028219,2]
[342847121,1732179056670,-642.54,0.00028219,2]
[342847122,1732179056681,-519.5119552,0.00028219,2]
[342847123,1732179056691,-1808.6085,0.00028219,2]
[342847124,1732179056701,-609.27,0.00028219,2]
[342847125,1732179056711,-2292.64392117,0.00028219,2]
[342847126,1732179056721,-650.11600514,0.00028219,2]
[342847127,1732179056732,-9446.85640552,0.00028219,2]
[342847128,1732179056742,-4609.62770996,0.00028219,2]
[342847129,1732179056753,-924.95719047,0.00028219,2]
[342847130,1732179056763,-1182.45418537,0.00028219,2]
[342847131,1732179056772,-2085.17974754,0.00028219,2]
[342847132,1732179056782,-253.334439,0.00028219,7]
[342847133,1732179056791,-253.334439,0.00028219,7]
[342847134,1732179056801,-151.0,0.00028219,7]
[342847135,1732179056810,-1177.18684859,0.00028219,2]
[342847136,1732179056819,-152.495925,0.000283,7]
[342847137,1732179056829,-157.182736,0.000283,7]
[342847138,1732179056838,-151.0,0.000283,7]
[342847139,1732179056847,-151.0,0.000283,7]
[342847140,1732179056856,-151.0,0.000283,7]
[342847141,1732179056865,-189.331968,0.000283,7]
[342847142,1732179056875,-151.0,0.000283,7]
[342847143,1732179056884,-189.331968,0.000283,7]
[342847144,1732179056894,-151.0,0.000283,7]
[342847145,1732179056903,-2137.812299,0.000283,7]
[342847146,1732179056912,-2137.812299,0.000283,7]
[342847147,1732179056922,-151.0,0.000283,7]
[342847148,1732179056932,-151.0,0.000283,7]
[342847149,1732179056942,-192.3987,0.000283,7]
[342847150,1732179056951,-192.3987,0.000283,7]
[342847151,1732179056961,-471.883528,0.000283,7]
[342847152,1732179056971,-471.883528,0.000283,7]
[342847153,1732179056981,-1283.908578,0.000283,7]
[342847154,1732179056990,-1283.908578,0.000283,7]
[342847155,1732179056999,-529.6,0.000283,31]
[342847156,1732179057011,-529.6,0.000283,31]
[342847157,1732179057021,-529.6,0.000283,31]
[342847158,1732179057030,-529.6,0.000283,31]
[342847159,1732179057040,-529.6,0.000283,31]
[342847160,1732179057049,-529.6,0.000283,31]
[342847161,1732179057058,-529.6,0.000283,31]
[342847162,1732179057068,-529.6,0.000283,31]
[342847163,1732179057077,-529.6,0.000283,31]
[342847164,1732179057087,-529.6,0.000283,31]
[342847165,1732179057098,-529.6,0.000283,31]
[342847166,1732179057107,-529.6,0.000283,31]
[342847167,1732179057117,-529.6,0.000283,31]
[342847168,1732179057127,-529.6,0.000283,31]
[342847169,1732179057136,-529.6,0.000283,31]
[342847170,1732179057146,-529.6,0.000283,31]
[342847171,1732179057155,-529.6,0.000283,31]
[342847172,1732179057165,-529.6,0.000283,31]
[342847173,1732179057178,-529.6,0.000283,31]
[342847174,1732179057188,-529.6,0.000283,31]
[342847175,1732179057197,-529.6,0.000283,31]
[342847176,1732179057207,-529.6,0.000283,31]
[342847177,1732179057216,-529.6,0.000283,31]
[342847178,1732179057227,-529.6,0.000283,31]
[342847179,1732179057236,-1423.435059,0.000283,7]
[342847180,1732179057246,-1943.946544,0.000283,7]
[342847181,1732179057255,-1943.946544,0.000283,7]
[342847182,1732179057265,-1423.435059,0.000283,7]
[342847183,1732179057274,-483.243882,0.000283,7]
[342847184,1732179057283,-483.243882,0.000283,7]
[342847185,1732179057293,-151.0,0.000283,7]
[342847186,1732179057302,-323.639727,0.000283,7]
[342847187,1732179057312,-323.639727,0.000283,7]
[342847188,1732179057321,-151.0,0.000283,7]
[342847189,1732179057331,-195.6668589,0.000283,7]
[342847190,1732179057340,-151.0,0.000283,7]
[342847191,1732179057349,-487.377585,0.000283,7]
[342847192,1732179057358,-642.696877,0.000283,7]
[342847193,1732179057367,-487.377585,0.000283,7]
[342847194,1732179057376,-151.0,0.000283,7]
[342847195,1732179057385,-480.607155,0.000283,7]
[342847196,1732179057394,-642.696877,0.000283,7]
[342847197,1732179057403,-202.567035,0.000283,7]
[342847198,1732179057412,-480.607155,0.000283,7]
[342847199,1732179057422,-24153.19373138,0.00028305,15]
[342847200,1732179057431,-300.0,0.000284,120]
[342847201,1732179057440,-455217.32058556,0.000284,120]
[342847202,1732179057450,-198421.21479493,0.000284,120]
[342847203,1732179057464,-151.0,0.000284,7]
[342847204,1732179057473,-151.0,0.000284,7]
[342847205,1732179057483,-171.177151,0.000284,7]
[342847206,1732179057491,-151.0,0.000284,7]
[342847207,1732179057501,-151.0,0.000284,7]
[342847208,1732179057510,-189.331968,0.000284,7]
[342847209,1732179057520,-151.0,0.000284,7]
[342847210,1732179057528,-189.33196,0.000284,7]
[342847211,1732179057538,-151.0,0.000284,7]
[342847212,1732179057547,-2137.812299,0.000284,7]
[342847213,1732179057556,-2137.812305,0.000284,7]
[342847214,1732179057566,-151.0,0.000284,7]
[342847215,1732179057575,-151.0,0.000284,7]
[342847216,1732179057584,-153.799413,0.000284,7]
[342847217,1732179057593,-153.799411,0.000284,7]
[342847218,1732179057671,-454.034636,0.000284,7]
[342847219,1732179057682,-454.034632,0.000284,7]
[342847220,1732179057691,-151.0,0.000284,7]
[342847221,1732179057701,-192.3987,0.000284,7]
[342847222,1732179057711,-192.398696,0.000284,7]
[342847223,1732179057720,-471.883528,0.000284,7]
[342847224,1732179057731,-471.883529,0.000284,7]
[342847225,1732179057740,-1283.908578,0.000284,7]
[342847226,1732179057751,-1283.908578,0.000284,7]
[342847227,1732179057761,-1283.908578,0.000284,7]
[342847228,1732179057771,-1283.908568,0.000284,7]
[342847229,1732179057780,-1423.435059,0.000284,7]
[342847230,1732179057790,-1423.435059,0.000284,7]
[342847231,1732179057800,-1943.946544,0.000284,7]
[342847232,1732179057809,-1943.946544,0.000284,7]
[342847233,1732179057818,-1943.946544,0.000284,7]
[342847234,1732179057828,-1943.946546,0.000284,7]
[342847235,1732179057838,-1423.435059,0.000284,7]
[342847236,1732179057848,-1423.435054,0.000284,7]
[342847237,1732179057858,-483.243882,0.000284,7]
[342847238,1732179057867,-483.243882,0.000284,7]
[342847239,1732179057877,-483.243882,0.000284,7]
[342847240,1732179057887,-483.243885,0.000284,7]
[342847241,1732179057896,-151.0,0.000284,7]
[342847242,1732179057906,-151.0,0.000284,7]
[342847243,1732179057915,-323.639727,0.000284,7]
[342847244,1732179057925,-323.639727,0.000284,7]
[342847245,1732179057935,-323.639727,0.000284,7]
[342847246,1732179057944,-323.639719,0.000284,7]
[342847247,1732179057954,-151.0,0.000284,7]
[342847248,1732179057963,-151.0,0.000284,7]
[342847249,1732179057974,-151.0,0.000284,7]
[342847250,1732179057983,-151.0,0.000284,7]
[342847251,1732179057993,-487.377585,0.000284,7]
[342847252,1732179058003,-487.377585,0.000284,7]
[342847253,1732179058012,-642.696877,0.000284,7]
[342847254,1732179058022,-642.696877,0.000284,7]
[342847255,1732179058032,-487.377585,0.000284,7]
[342847256,1732179058041,-151.0,0.000284,7]
[342847257,1732179058050,-151.0,0.000284,7]
[342847258,1732179058060,-487.377587,0.000284,7]
[342847259,1732179058069,-480.607155,0.000284,7]
[342847260,1732179058079,-480.607155,0.000284,7]
[342847261,1732179058090,-642.696877,0.000284,7]
[342847262,1732179058100,-642.696875,0.000284,7]
[342847263,1732179058111,-480.607155,0.000284,7]
[342847264,1732179058120,-480.607146,0.000284,7]
[342847265,1732179058130,-253.334439,0.000284,7]
[342847266,1732179058140,-253.334436,0.000284,7]
[342847267,1732179058149,-5000.0,0.00028405,30]
[342847268,1732179058159,-1000.0,0.00028409,2]
[342847269,1732179058168,-1000.0,0.00028417,2]